bitfinex-derivatives/quotes_BTCF0:USTF0_20251109
["timestamp","ask_amount","ask_price","bid_price","bid_amount"]
[1762719559490,0.37069803,104590.0,104580.0,0.1606334]
[1762719560791,0.37069803,104590.0,104580.0,0.06499]
[1762719561304,0.54251781,104590.0,104580.0,0.01937]
[1762719561501,0.54351781,104590.0,104580.0,0.01737]
[1762719561798,0.54551781,104590.0,104580.0,0.03666]
[1762719562301,0.46933223,104590.0,104580.0,0.05899]
[1762719564691,0.46933223,104590.0,104580.0,0.03666]
[1762719565905,0.46933223,104590.0,104580.0,0.05899]
[1762719567102,0.54551781,104590.0,104580.0,0.05899]
[1762719567603,0.62027812,104590.0,104580.0,0.05899]
[1762719568903,0.0067,104580.0,104570.0,0.06260472]
[1762719569105,0.36969803,104580.0,104570.0,0.06260472]
[1762719570202,0.36969803,104580.0,104570.0,0.15825732]
[1762719570607,0.46634153,104580.0,104570.0,0.06260472]
[1762719571201,0.51095383,104580.0,104570.0,0.06260472]
[1762719571706,0.58713941,104580.0,104570.0,0.00492472]
[1762719572207,0.58713941,104580.0,104570.0,0.06280472]
[1762719572404,0.58713941,104580.0,104570.0,0.04013472]
[1762719572710,0.58713941,104580.0,104570.0,0.00492472]
[1762719574508,0.0067,104560.0,104550.0,0.1533487]
[1762719574717,0.41457046,104560.0,104550.0,0.1533509]
[1762719575717,0.41557046,104560.0,104550.0,0.1533509]
[1762719576812,0.41557046,104560.0,104550.0,0.1573509]
[1762719581820,0.05477046,104560.0,104550.0,0.23353648]
[1762719582016,0.04807046,104560.0,104550.0,0.23353648]
[1762719582920,0.04807046,104560.0,104550.0,0.59433648]
[1762719583216,0.00319803,104560.0,104550.0,0.98085648]
[1762719583721,0.001,104560.0,104550.0,0.98085648]
[1762719583921,0.00014346,104570.0,104560.0,0.1535417]
[1762719584116,0.00014346,104570.0,104560.0,0.59052728]
[1762719585219,0.00014346,104570.0,104560.0,0.82960728]
[1762719585919,0.33518719,104590.0,104580.0,0.05788]
[1762719586222,0.33738522,104590.0,104580.0,0.05788]
[1762719587118,0.34138522,104590.0,104580.0,0.05788]
[1762719587518,0.0087,104580.0,104570.0,0.05924346]
[1762719587824,0.37169803,104580.0,104570.0,0.05924346]
[1762719588025,0.49413355,104580.0,104570.0,0.05924346]
[1762719589618,0.49513355,104580.0,104570.0,0.05924346]
[1762719589824,0.41894797,104580.0,104570.0,0.15489596]
[1762719590420,0.51459137,104580.0,104570.0,0.05924346]
[1762719591328,0.59077695,104580.0,104570.0,0.05924346]
[1762719591526,0.49513355,104580.0,104570.0,0.15489596]
[1762719591831,0.41894797,104580.0,104570.0,0.15489596]
[1762719592627,0.51459127,104580.0,104570.0,0.05924346]
[1762719594431,0.59077685,104580.0,104570.0,0.05924346]
[1762719594930,0.49513355,104580.0,104570.0,0.15489596]
[1762719595727,0.41894797,104580.0,104570.0,0.15489596]
[1762719595927,0.41459797,104580.0,104570.0,0.15489596]
[1762719596233,0.41894797,104580.0,104570.0,0.15489596]
[1762719596427,0.05814797,104580.0,104570.0,0.15489596]
[1762719598219,0.41894797,104580.0,104570.0,0.15489596]
[1762719598726,0.41894797,104580.0,104570.0,0.05924346]
[1762719598923,0.51459137,104580.0,104570.0,0.05924346]
[1762719599824,0.59077695,104580.0,104570.0,0.05924346]
[1762719600122,1.19077695,104580.0,104560.0,0.1474]
[1762719600330,0.05491397,104560.0,104550.0,0.05795]
[1762719600528,0.44788361,104560.0,104550.0,0.05795]
[1762719600726,0.49409758,104560.0,104550.0,0.05795]
[1762719600927,0.417912,104560.0,104550.0,0.1536208]
[1762719601132,0.052762,104560.0,104550.0,0.1536208]
[1762719601528,0.057112,104560.0,104550.0,0.1536208]
[1762719602530,0.1527737,104560.0,104550.0,0.06195]
[1762719602728,0.1537737,104560.0,104550.0,0.06195]
[1762719603431,0.5145737,104560.0,104550.0,0.06195]
[1762719604530,0.5145737,104560.0,104550.0,0.1576208]
[1762719604736,0.418912,104560.0,104550.0,0.1576208]
[1762719605629,0.418912,104560.0,104550.0,0.06195]
[1762719606735,0.418912,104560.0,104550.0,0.1576208]
[1762719607839,0.058112,104560.0,104550.0,0.1576208]
[1762719608037,0.418912,104560.0,104550.0,0.1576208]
[1762719608426,0.5145737,104560.0,104550.0,0.1576208]
[1762719608643,0.5145737,104560.0,104550.0,0.06195]
[1762719609441,0.418912,104560.0,104550.0,0.1576208]
[1762719616739,0.5145737,104560.0,104550.0,0.1576208]
[1762719618649,0.418912,104560.0,104550.0,0.1576208]
[1762719621553,0.5145737,104560.0,104550.0,0.1576208]
[1762719622348,0.418912,104560.0,104550.0,0.1576208]
[1762719625654,0.50477612,104560.0,104550.0,0.06195]
[1762719626552,0.50477612,104560.0,104550.0,0.1576209]
[1762719626948,0.60478782,104560.0,104550.0,0.004]
[1762719628152,0.0087,104550.0,104540.0,0.00492609]
[1762719628352,0.54342627,104550.0,104540.0,0.00492609]
[1762719629256,0.54342627,104550.0,104540.0,0.00892609]
[1762719629458,0.45756215,104550.0,104540.0,0.16042609]
[1762719630161,0.45756215,104550.0,104540.0,0.15842609]
[1762719630360,0.45856215,104550.0,104540.0,0.15842609]
[1762719636757,0.37269803,104550.0,104540.0,0.15842609]
[1762719636955,0.45856215,104550.0,104540.0,0.15842609]
[1762719641269,0.37269803,104550.0,104540.0,0.24429021]
[1762719641880,0.00319803,104550.0,104540.0,0.60509021]
[1762719642973,0.00389803,104550.0,104540.0,0.60509021]
[1762719644781,0.00389803,104550.0,104540.0,0.75249021]
[1762719646582,0.00354803,104550.0,104540.0,0.75249021]
[1762719646882,0.00319803,104550.0,104540.0,0.75249021]
[1762719647282,4.32e-05,104550.0,104540.0,0.75395556]
[1762719648674,0.0003932,104550.0,104540.0,0.75395556]
[1762719649085,0.00112587,104550.0,104540.0,0.75395556]
[1762719649385,0.00147587,104550.0,104540.0,0.75395556]
[1762719651582,4.32e-05,104550.0,104540.0,0.75395556]
[1762719662197,0.04621397,104560.0,104550.0,0.1540208]
[1762719662399,0.04621397,104560.0,104550.0,0.68874707]
[1762719663497,0.04821397,104560.0,104550.0,0.68874707]
[1762719664795,6e-08,104570.0,104560.0,0.05835]
[1762719665003,0.40483,104600.0,104590.0,0.1497743]
[1762719665300,0.40556267,104600.0,104590.0,0.15197233]
[1762719666196,0.41056267,104600.0,104590.0,0.15197233]
[1762719666497,0.005,104600.0,104590.0,0.58903035]
[1762719666701,0.01355222,104610.0,104600.0,0.1539751]
[1762719666900,0.01355222,104610.0,104600.0,0.59323115]
[1762719667099,0.01355222,104610.0,104600.0,0.83223115]
[1762719667395,2.22e-06,104610.0,104600.0,0.83223115]
[1762719667896,0.00025,104620.0,104610.0,0.153966]
[1762719668199,0.04501267,104620.0,104610.0,0.15616403]
[1762719668703,0.05914382,104620.0,104610.0,0.15616403]
[1762719668999,0.43384382,104620.0,104610.0,0.15616403]
[1762719669296,1.11010184,104620.0,104610.0,0.002]
[1762719669504,1.11110184,104620.0,104610.0,0.006]
[1762719670005,0.05779,104610.0,104600.0,0.00014346]
[1762719670191,0.49558069,104610.0,104600.0,0.00014346]
[1762719671200,0.41932267,104610.0,104600.0,0.14241669]
[1762719671404,0.02289267,104610.0,104600.0,0.15631669]
[1762719671996,0.01438115,104620.0,104610.0,0.153966]
[1762719672298,0.01438115,104620.0,104610.0,0.59322205]
[1762719672891,0.01438115,104620.0,104610.0,0.51696403]
[1762719673087,0.01413115,104620.0,104610.0,0.51696403]
[1762719673301,0.04867346,104630.0,104620.0,0.1539569]
[1762719673493,0.04867346,104630.0,104620.0,0.51695493]
[1762719674195,0.06193747,104630.0,104620.0,0.51695493]
[1762719675289,0.06293747,104630.0,104620.0,0.51695493]
[1762719675492,0.06393747,104630.0,104620.0,0.51995493]
[1762719682902,0.06393747,104630.0,104620.0,0.66735493]
[1762719684792,0.43863747,104630.0,104620.0,0.19704803]
[1762719684993,0.43863747,104630.0,104620.0,0.04964803]
[1762719685393,0.43863747,104630.0,104620.0,0.02736803]
[1762719685590,0.57337859,104630.0,104620.0,0.00519803]
[1762719685900,1.21868616,104630.0,104620.0,0.003]
[1762719686105,0.0541,104610.0,104600.0,0.04260346]
[1762719686295,0.4149,104610.0,104600.0,0.04480149]
[1762719687213,0.4149,104610.0,104600.0,0.14342659]
[1762719687500,0.4159,104610.0,104600.0,0.16126659]
[1762719688705,0.4159,104610.0,104600.0,0.15826659]
[1762719689405,0.4159,104610.0,104600.0,0.15526659]
[1762719689406,0.514516,104610.0,104600.0,0.15526659]
[1762719690105,0.514516,104610.0,104600.0,0.04580149]
[1762719690404,0.56008376,104610.0,104600.0,0.04580149]
[1762719690606,0.514516,104610.0,104600.0,0.04580149]
[1762719691107,0.514516,104610.0,104600.0,0.00114346]
[1762719691301,0.69548393,104610.0,104600.0,0.00114346]
[1762719691806,0.69431967,104610.0,104600.0,0.00114346]
[1762719693308,0.64925712,104610.0,104600.0,0.00114346]
[1762719693612,0.69420938,104610.0,104600.0,0.00114346]
[1762719694506,0.69542059,104610.0,104600.0,0.00114346]
[1762719695810,0.45416347,104610.0,104600.0,0.15526659]
[1762719695999,0.09336347,104610.0,104600.0,0.15526659]
[1762719696314,0.09336347,104610.0,104600.0,0.51606659]
[1762719699106,0.05016347,104610.0,104600.0,0.51606659]
[1762719700605,0.05016347,104610.0,104600.0,0.66346659]
[1762719701310,0.46798347,104610.0,104600.0,0.30266669]
[1762719702817,0.46798347,104610.0,104600.0,0.19320149]
[1762719703010,0.46798347,104610.0,104600.0,0.28882669]
[1762719703719,0.56359947,104610.0,104600.0,0.28882669]
[1762719704018,0.45416347,104610.0,104600.0,0.30266669]
[1762719704719,0.09336347,104610.0,104600.0,0.30266669]
[1762719705417,0.56085947,104610.0,104600.0,0.19320149]
[1762719706424,0.56085947,104610.0,104600.0,0.04580149]
[1762719708517,0.56085947,104610.0,104600.0,0.00334149]
[1762719708916,0.56085947,104610.0,104600.0,0.00114346]
[1762719709115,0.43307347,104610.0,104600.0,0.15684659]
[1762719709320,0.05016347,104610.0,104600.0,0.15684659]
[1762719710018,0.004,104610.0,104600.0,0.15684659]
[1762719710621,0.004,104610.0,104600.0,0.51764659]
[1762719715220,0.004,104610.0,104600.0,0.66504659]
[1762719717027,0.004,104610.0,104600.0,1.03878771]
[1762719717422,0.004,104610.0,104600.0,1.39958771]
[1762719717625,0.06321504,104630.0,104620.0,0.1489269]
[1762719717626,0.10871504,104630.0,104620.0,0.1489269]
[1762719717923,0.10871504,104630.0,104620.0,0.15112493]
[1762719718314,0.06321504,104630.0,104620.0,0.15112493]
[1762719718519,0.10871504,104630.0,104620.0,0.15112493]
[1762719718816,0.07421504,104630.0,104620.0,0.51192493]
[1762719719826,0.07021504,104630.0,104620.0,0.51192493]
[1762719720027,0.07121504,104630.0,104620.0,0.51192493]
[1762719721326,0.06421504,104630.0,104620.0,0.51192493]
[1762719721526,0.01890747,104630.0,104620.0,0.51292493]
[1762719721724,0.01890747,104630.0,104620.0,0.75188493]
[1762719721926,0.01890747,104630.0,104620.0,0.51292493]
[1762719725028,0.06440747,104630.0,104620.0,0.51292493]
[1762719725525,0.07753747,104630.0,104620.0,0.04802803]
[1762719725730,0.43833747,104630.0,104620.0,0.04802803]
[1762719726324,0.43833747,104630.0,104620.0,0.14363493]
[1762719726531,0.43833747,104630.0,104620.0,0.15762493]
[1762719726932,0.44233747,104630.0,104620.0,0.15662493]
[1762719727535,0.43833747,104630.0,104620.0,0.04702803]
[1762719727834,0.43933747,104630.0,104620.0,0.04702803]
[1762719728033,0.44233747,104630.0,104620.0,0.04802803]
[1762719728230,0.53167402,104630.0,104620.0,0.00319803]
[1762719728435,0.53167402,104630.0,104620.0,0.001]
[1762719728733,0.05863,104620.0,104610.0,0.1404459]
[1762719728936,0.4063,104620.0,104610.0,0.15663393]
[1762719729235,0.0455,104620.0,104610.0,0.15663393]
[1762719731037,0.0465,104620.0,104610.0,0.15763393]
[1762719731539,0.0455,104620.0,104610.0,0.15663393]
[1762719731725,0.0465,104620.0,104610.0,0.15863393]
[1762719732337,0.0465,104620.0,104610.0,0.16063393]
[1762719733543,0.001,104620.0,104610.0,0.52143393]
[1762719733839,0.0465,104620.0,104610.0,0.16063393]
[1762719734645,0.05963,104620.0,104610.0,0.16063393]
[1762719737645,0.42043,104620.0,104610.0,0.16063393]
[1762719738349,0.42043,104620.0,104610.0,0.06501803]
[1762719738542,0.42043,104620.0,104610.0,0.16063403]
[1762719738742,0.42043,104620.0,104610.0,0.30803403]
[1762719738942,0.42043,104620.0,104610.0,0.39380533]
[1762719739145,0.5062013,104620.0,104610.0,0.30803403]
[1762719740350,0.6018081,104620.0,104610.0,0.30803403]
[1762719741048,0.001,104620.0,104610.0,0.75460533]
[1762719741248,0.01790747,104630.0,104620.0,0.1544268]
[1762719741448,0.01790747,104630.0,104620.0,0.60319613]
[1762719742545,0.01790747,104630.0,104620.0,0.51742483]
[1762719742745,0.01790747,104630.0,104620.0,0.60319613]
[1762719743052,0.06340747,104630.0,104620.0,0.51742483]
[1762719743445,0.06340747,104630.0,104620.0,0.51842483]
[1762719743641,0.06440747,104630.0,104620.0,0.51842483]
[1762719745147,0.06440747,104630.0,104620.0,0.15762483]
[1762719747557,0.07826747,104630.0,104620.0,0.04802803]
[1762719748265,0.07826747,104630.0,104620.0,0.14363483]
[1762719748464,0.07826747,104630.0,104620.0,0.15625483]
[1762719749963,0.07826747,104630.0,104620.0,0.14363483]
[1762719750169,0.43906747,104630.0,104620.0,0.14363483]
[1762719750361,0.43906747,104630.0,104620.0,0.29103483]
[1762719754872,0.43906747,104630.0,104620.0,0.19542803]
[1762719756170,0.43906747,104630.0,104620.0,0.17260803]
[1762719756365,0.43906747,104630.0,104620.0,0.02592803]
[1762719756567,0.43906747,104630.0,104620.0,0.04905803]
[1762719757665,0.43906747,104630.0,104620.0,0.14466483]
[1762719759276,0.43906747,104630.0,104620.0,0.04905803]
[1762719762866,0.52482713,104630.0,104620.0,0.04905803]
[1762719763068,0.52482713,104630.0,104620.0,0.06167803]
[1762719763264,0.52482713,104630.0,104620.0,0.04905803]
[1762719766977,0.43906747,104630.0,104620.0,0.04905803]
[1762719767276,0.52482713,104630.0,104620.0,0.04905803]
[1762719768577,0.52482713,104630.0,104620.0,0.15795483]
[1762719769978,0.52482713,104630.0,104620.0,0.14466483]
[1762719771079,0.52482713,104630.0,104620.0,0.04905803]
[1762719771283,0.52482713,104630.0,104620.0,0.02592803]
[1762719771985,0.52482713,104630.0,104620.0,0.04793803]
[1762719772685,0.52482713,104630.0,104620.0,0.02592803]
[1762719772885,0.52482713,104630.0,104620.0,0.00319803]
[1762719773686,0.52482713,104630.0,104620.0,0.001]
[1762719775282,0.62042483,104630.0,104620.0,0.001]
[1762719777385,0.62042483,104630.0,104600.0,0.00014346]
[1762719777386,0.05069,104610.0,104600.0,0.00014346]
[1762719777685,0.77229,104610.0,104600.0,0.00234149]
[1762719777988,0.77229,104610.0,104600.0,0.02354149]
[1762719778175,0.85804966,104610.0,104600.0,0.02354149]
[1762719778576,0.85804966,104610.0,104600.0,0.03154149]
[1762719778781,0.85904966,104610.0,104600.0,0.01034149]
[1762719779290,0.85904966,104610.0,104600.0,0.03154149]
[1762719779489,0.86104966,104610.0,104600.0,0.02754149]
[1762719780289,0.86104966,104610.0,104600.0,0.00634149]
[1762719780484,0.86004966,104610.0,104600.0,0.02354149]
[1762719780678,0.86204966,104610.0,104600.0,0.02454149]
[1762719781580,0.77629,104610.0,104600.0,0.14334659]
[1762719781785,0.7688,104610.0,104600.0,0.24206625]
[1762719783179,0.8777459,104610.0,104600.0,0.22910625]
[1762719783382,0.96350556,104610.0,104600.0,0.00334149]
[1762719785891,0.96350556,104610.0,104600.0,0.14334659]
[1762719786094,0.78213,104610.0,104600.0,0.24206625]
[1762719786490,0.78213,104610.0,104600.0,0.15630659]
[1762719786795,0.14628966,104610.0,104600.0,0.15630659]
[1762719786993,0.06053,104610.0,104600.0,0.15630659]
[1762719787194,0.06053,104610.0,104600.0,0.24206625]
[1762719787394,0.0472,104610.0,104600.0,0.24206625]
[1762719788893,0.0472,104610.0,104600.0,0.15630659]
[1762719791593,0.004,104610.0,104600.0,0.59334938]
[1762719791992,0.02180999,104610.0,104600.0,0.59334938]
[1762719792188,0.04337999,104610.0,104600.0,0.59334938]
[1762719794398,0.04337999,104610.0,104600.0,0.74074938]
[1762719795504,0.04337999,104610.0,104600.0,0.59334938]
[1762719798100,0.00017999,104610.0,104600.0,0.59334938]
[1762719798300,0.02180999,104610.0,104600.0,0.59334938]
[1762719798602,0.04337999,104610.0,104600.0,0.59334938]
[1762719803398,0.04337999,104610.0,104600.0,0.23254938]
[1762719803595,0.04337999,104610.0,104600.0,0.59334938]
[1762719804805,0.04337999,104610.0,104600.0,0.15630659]
[1762719805501,0.05670999,104610.0,104600.0,0.06068149]
[1762719805711,0.41750999,104610.0,104600.0,0.14334679]
[1762719806204,0.41750999,104610.0,104600.0,0.15669679]
[1762719806205,0.05670999,104610.0,104600.0,0.15669679]
[1762719806405,0.04337999,104610.0,104600.0,0.15669679]
[1762719806796,0.04337999,104610.0,104600.0,0.51749679]
[1762719807604,0.04337999,104610.0,104600.0,0.15669679]
[1762719809708,0.07305804,104630.0,104620.0,0.05614]
[1762719809904,0.07305804,104630.0,104620.0,0.41913803]
[1762719810712,0.04497246,104630.0,104620.0,0.51474503]
[1762719810914,0.04497246,104630.0,104620.0,0.87554503]
[1762719811210,0.05786322,104630.0,104620.0,0.87554503]
[1762719811413,0.06186322,104630.0,104620.0,0.87654503]
[1762719812002,0.06686322,104630.0,104620.0,0.87654503]
[1762719812513,0.06286322,104630.0,104620.0,0.87554503]
[1762719812814,0.001,104630.0,104620.0,0.87754503]
[1762719813609,0.01422918,104630.0,104620.0,0.87754503]
[1762719815522,0.07624279,104650.0,104640.0,0.05614]
[1762719815721,0.07624279,104650.0,104640.0,0.77993803]
[1762719816624,0.07724279,104650.0,104640.0,0.77993803]
[1762719816823,0.09040869,104650.0,104640.0,0.77993803]
[1762719818322,0.09240869,104650.0,104640.0,0.78093803]
[1762719821030,0.07624279,104650.0,104640.0,0.78093803]
[1762719821728,0.08930223,104650.0,104640.0,0.78093803]
[1762719822822,0.08930223,104650.0,104640.0,0.75974803]
[1762719823430,0.08930223,104650.0,104640.0,0.78093803]
[1762719824124,0.07624279,104650.0,104640.0,0.78093803]
[1762719825629,0.07146564,104650.0,104640.0,0.78093803]
[1762719826833,0.21581564,104650.0,104640.0,0.76758803]
[1762719827431,0.2291691,104650.0,104640.0,0.76758803]
[1762719829327,0.30541189,104650.0,104640.0,0.72479803]
[1762719829530,0.23394625,104650.0,104640.0,0.72479803]
[1762719833231,0.23394625,104650.0,104640.0,0.78640803]
[1762719834227,0.23394625,104650.0,104640.0,0.84555803]
[1762719834439,0.12823346,104650.0,104640.0,0.88173803]
[1762719834731,0.30465201,104660.0,104650.0,0.15694]
[1762719834935,0.30465201,104660.0,104650.0,0.51993803]
[1762719836137,0.3176614,104660.0,104650.0,0.51993803]
[1762719836435,0.3216614,104660.0,104650.0,0.51993803]
[1762719837039,0.3236614,104660.0,104650.0,0.52093803]
[1762719839837,0.24741861,104660.0,104650.0,0.52093803]
[1762719840140,0.10123218,104660.0,104650.0,0.52093803]
[1762719840339,0.02498939,104660.0,104650.0,0.52093803]
[1762719841643,0.02199939,104660.0,104650.0,0.52093803]
[1762719841835,0.01900939,104660.0,104650.0,0.52093803]
[1762719843835,0.07990279,104670.0,104660.0,0.49506061]
[1762719844037,0.07990279,104670.0,104660.0,0.49725864]
[1762719845439,0.08490279,104670.0,104660.0,0.49725864]
[1762719845940,0.0982956,104670.0,104660.0,0.49725864]
[1762719846141,0.1012956,104670.0,104660.0,0.49825864]
[1762719846741,0.0992956,104670.0,104660.0,0.49825864]
[1762719846939,0.0962956,104670.0,104660.0,0.49725864]
[1762719847139,0.0982956,104670.0,104660.0,0.49825864]
[1762719848450,0.01839281,104670.0,104660.0,0.49825864]
[1762719848652,0.30233201,104690.0,104680.0,0.15327]
[1762719848949,0.22242922,104690.0,104680.0,0.51626803]
[1762719849550,0.29867201,104690.0,104680.0,0.51626803]
[1762719849752,0.08224279,104690.0,104680.0,0.51626803]
[1762719850253,0.08807279,104690.0,104680.0,0.51726803]
[1762719851048,0.09750832,104690.0,104680.0,0.51726803]
[1762719851547,0.09933832,104690.0,104680.0,0.51726803]
[1762719851946,0.11277309,104690.0,104680.0,0.51726803]
[1762719857853,0.19845141,104690.0,104680.0,0.51726803]
[1762719858545,0.19845141,104690.0,104680.0,0.36399803]
[1762719858948,0.19845141,104690.0,104680.0,0.42132803]
[1762719859353,0.42307866,104690.0,104680.0,0.4170607]
[1762719859553,0.42307866,104690.0,104680.0,0.3501567]
[1762719859752,0.42307866,104690.0,104680.0,0.5034267]
[1762719859953,0.33740034,104690.0,104680.0,0.5034267]
[1762719860858,0.42307866,104690.0,104680.0,0.5034267]
[1762719861959,0.20064944,104690.0,104680.0,0.5034267]
[1762719862457,0.11497112,104690.0,104680.0,0.5034267]
[1762719862957,0.11314112,104690.0,104680.0,0.5034267]
[1762719863151,0.11497112,104690.0,104680.0,0.5034267]
[1762719863544,0.11314112,104690.0,104680.0,0.5034267]
[1762719863750,0.11131112,104690.0,104680.0,0.5034267]
[1762719865054,0.10911309,104690.0,104680.0,0.5034267]
[1762719865255,4.77e-06,104690.0,104680.0,0.3874767]
[1762719865558,0.08171945,104690.0,104680.0,0.5034267]
[1762719865756,0.22242922,104710.0,104700.0,0.15327]
[1762719865757,0.24768922,104710.0,104700.0,0.15327]
[1762719865959,0.24988725,104710.0,104700.0,0.87560267]
[1762719866358,0.26380026,104710.0,104700.0,0.87560267]
[1762719866756,0.23634223,104710.0,104700.0,0.97113667]
[1762719866962,0.27375442,104730.0,104720.0,0.49909]
[1762719867257,0.35943274,104730.0,104720.0,0.49982267]
[1762719867461,0.27375442,104730.0,104720.0,0.49982267]
[1762719867649,0.35943274,104730.0,104720.0,0.49982267]
[1762719867848,0.35943274,104730.0,104720.0,0.49482267]
[1762719868049,0.08567832,104730.0,104720.0,0.49482267]
[1762719868451,0.08667832,104730.0,104720.0,0.49482267]
[1762719869158,0.10086981,104730.0,104720.0,0.49482267]
[1762719873958,0.10306784,104730.0,104720.0,0.49482267]
[1762719876265,0.13250784,104730.0,104720.0,0.49482267]
[1762719876567,0.24762616,104730.0,104720.0,0.49482267]
[1762719881270,0.46968788,104730.0,104720.0,0.49482267]
[1762719890975,0.24762616,104730.0,104720.0,0.49482267]
[1762719893469,0.46968788,104730.0,104720.0,0.49482267]
[1762719896981,0.24762616,104730.0,104720.0,0.49482267]
[1762719898182,0.46968788,104730.0,104720.0,0.49482267]
[1762719900584,0.24762616,104730.0,104720.0,0.49482267]
[1762719900782,0.47039373,104730.0,104720.0,0.49482267]
[1762719901978,0.24762616,104730.0,104720.0,0.49482267]
[1762719910987,0.1523944,104730.0,104720.0,0.49482267]
[1762719911186,0.07626952,104730.0,104720.0,0.49482267]
[1762719911383,0.1523944,104730.0,104720.0,0.49482267]
[1762719919392,0.22851928,104730.0,104720.0,0.49482267]
[1762719919597,0.13913,104720.0,104710.0,0.36094346]
[1762719919897,0.13913,104700.0,104690.0,0.46847]
[1762719920093,0.21745291,104700.0,104690.0,0.46920267]
[1762719921087,0.21745291,104700.0,104690.0,0.47420267]
[1762719923200,0.21745291,104700.0,104690.0,0.47020267]
[1762719925699,0.10854803,104700.0,104690.0,0.50284267]
[1762719925897,0.00014346,104710.0,104700.0,0.13873]
[1762719926093,0.00014346,104710.0,104700.0,0.50026267]
[1762719926298,0.07846637,104710.0,104700.0,0.50026267]
[1762719926497,0.13226637,104710.0,104700.0,0.50026267]
[1762719926900,0.18764637,104710.0,104700.0,0.50026267]
[1762719927102,0.21936637,104710.0,104700.0,0.50026267]
[1762719927311,0.21936637,104710.0,104700.0,0.50426267]
[1762719928000,0.18964637,104710.0,104700.0,0.50426267]
[1762719928505,0.18964637,104710.0,104700.0,0.50126267]
[1762719928695,0.18764637,104710.0,104700.0,0.50326267]
[1762719929101,0.21936637,104710.0,104700.0,0.50326267]
[1762719929295,0.21936637,104710.0,104700.0,0.46945267]
[1762719929709,0.21936637,104710.0,104700.0,0.46845267]
[1762719929913,0.21936637,104710.0,104700.0,0.47045267]
[1762719930406,0.21936637,104710.0,104700.0,0.46945267]
[1762719931198,0.18764637,104710.0,104700.0,0.50326267]
[1762719931398,0.18764637,104710.0,104700.0,0.50126267]
[1762719931903,0.21936637,104710.0,104700.0,0.50126267]
[1762719932910,0.21936637,104710.0,104700.0,0.46745267]
[1762719935209,0.21936637,104710.0,104700.0,0.36253267]
[1762719935412,0.1409,104700.0,104690.0,0.3608]
[1762719935710,0.21922291,104700.0,104690.0,0.36153267]
[1762719936011,0.21922291,104700.0,104690.0,0.05177267]
[1762719936206,0.21922291,104700.0,104690.0,0.10565267]
[1762719937012,0.1409,104690.0,104680.0,0.49850346]
[1762719937206,0.21922291,104690.0,104680.0,0.49923613]
[1762719938312,0.21922291,104690.0,104680.0,0.50023613]
[1762719941813,0.18750291,104690.0,104680.0,0.50023613]
[1762719942213,0.21922291,104690.0,104680.0,0.50023613]
[1762719951823,0.11137803,104690.0,104680.0,0.50023613]
[1762719952023,0.18750291,104690.0,104680.0,0.50023613]
[1762719960925,0.07832291,104690.0,104680.0,0.50023613]
[1762719961424,0.20065291,104690.0,104680.0,0.50023613]
[1762719963622,0.07832291,104690.0,104680.0,0.50023613]
[1762719966634,0.17945291,104690.0,104680.0,0.50023613]
[1762719966836,0.07832291,104690.0,104680.0,0.50023613]
[1762719967034,0.13050291,104690.0,104680.0,0.50023613]
[1762719970526,0.17945291,104690.0,104680.0,0.50023613]
[1762719971531,0.07832291,104690.0,104680.0,0.50023613]
[1762719971732,0.13050291,104690.0,104680.0,0.50023613]
[1762719972043,0.17945291,104690.0,104680.0,0.50023613]
[1762719972845,0.18902091,104690.0,104680.0,0.50023613]
[1762719974342,0.41178848,104690.0,104680.0,0.50023613]
[1762719975340,0.43510848,104690.0,104680.0,0.46759613]
[1762719975545,0.21234091,104690.0,104680.0,0.49689613]
[1762719975742,0.18902091,104690.0,104680.0,0.49689613]
[1762719976642,0.19102091,104690.0,104680.0,0.49689613]
[1762719977339,0.19202091,104690.0,104680.0,0.49589613]
[1762719977535,0.19002091,104690.0,104680.0,0.49589613]
[1762719977935,0.18902091,104690.0,104680.0,0.49689613]
[1762719981446,0.41178848,104690.0,104680.0,0.49689613]
[1762719986145,0.50566136,104690.0,104680.0,0.49689613]
[1762719987439,0.50766136,104690.0,104680.0,0.49589613]
[1762719987641,0.50866136,104690.0,104680.0,0.49589613]
[1762719990049,0.19202091,104690.0,104680.0,0.49589613]
[1762719990250,0.28776379,104690.0,104680.0,0.00014346]
[1762719990551,0.12386,104680.0,104670.0,0.12431]
[1762719990741,0.26869379,104680.0,104670.0,0.12504267]
[1762719991439,0.49151352,104680.0,104670.0,0.12504267]
[1762719991650,0.49151352,104680.0,104670.0,0.48684267]
[1762719992646,0.26869379,104680.0,104670.0,0.48684267]
[1762720000556,0.29744379,104680.0,104670.0,0.48684267]
[1762720001153,0.52026352,104680.0,104670.0,0.48684267]
[1762720007956,0.52026352,104680.0,104650.0,0.04380999]
[1762720007957,0.10747,104660.0,104650.0,0.40446]
[1762720008154,0.10747,104660.0,104650.0,0.08731]
[1762720008155,0.28105379,104660.0,104650.0,0.08731]
[1762720008358,0.50387352,104660.0,104650.0,0.04366]
[1762720008557,0.10747,104650.0,104640.0,0.47672]
[1762720008756,0.28105379,104650.0,104640.0,0.44884267]
[1762720013766,0.28105379,104650.0,104640.0,0.47492267]
[1762720016562,0.25474379,104650.0,104640.0,0.47492267]
[1762720016963,0.27306379,104650.0,104640.0,0.47492267]
[1762720018972,0.25474379,104650.0,104640.0,0.47492267]
[1762720019265,0.16905091,104650.0,104640.0,0.47492267]
[1762720019770,0.27306379,104650.0,104640.0,0.47492267]
[1762720022775,0.49588352,104650.0,104640.0,0.47492267]
[1762720023069,0.49588352,104650.0,104640.0,0.44884267]
[1762720023677,0.49588352,104650.0,104640.0,0.47415267]
[1762720027777,0.27306379,104650.0,104640.0,0.47415267]
[1762720032880,0.17792157,104650.0,104640.0,0.47415267]
[1762720034776,0.17792157,104650.0,104640.0,0.11335267]
[1762720036380,0.17792157,104650.0,104640.0,0.47415267]
[1762720041683,0.17792157,104650.0,104640.0,0.44884267]
[1762720042292,0.17792157,104650.0,104640.0,0.47415267]
[1762720042590,0.17792157,104650.0,104640.0,0.44884267]
[1762720043680,0.17792157,104650.0,104640.0,0.47415267]
[1762720047191,0.07624354,104650.0,104640.0,0.47415267]
[1762720047406,0.076387,104660.0,104650.0,0.09924]
[1762720047599,0.07858503,104660.0,104650.0,0.46077267]
[1762720047791,0.07858503,104660.0,104650.0,0.47077266]
[1762720048298,0.30140476,104660.0,104650.0,0.47077266]
[1762720049193,0.30240476,104660.0,104650.0,0.47077266]
[1762720049392,0.07958503,104660.0,104650.0,0.47077266]
[1762720049599,0.07858503,104660.0,104650.0,0.47077266]
[1762720049800,0.07858503,104660.0,104650.0,0.47277266]
[1762720050198,0.15626503,104660.0,104650.0,0.47477266]
[1762720051603,0.15626503,104660.0,104650.0,0.47277266]
[1762720051998,0.15626503,104660.0,104650.0,0.47077266]
[1762720051999,0.00234149,104660.0,104650.0,0.47077266]
[1762720052393,0.11814503,104660.0,104650.0,0.47077266]
[1762720052704,0.15626503,104660.0,104650.0,0.47077266]
[1762720053202,0.15626503,104660.0,104650.0,0.46077267]